fUST/lending_fUST_20250729
["ID","MTS","AMOUNT","RATE_DAILY","PERIOD"]
[375928376,1753787448161,-460.0,0.00020273,2]
[375928378,1753787448173,-460.0,0.00020273,2]
[375928380,1753787448183,-912.41,0.00020273,2]
[375928382,1753787448192,-460.0,0.00020273,2]
[375928384,1753787448202,-460.0,0.00020273,2]
[375928386,1753787448212,-499.15,0.00020273,2]
[375928388,1753787448222,-460.0,0.00020273,2]
[375928390,1753787448231,-545.94,0.00020273,2]
[375928392,1753787448241,-3185.05,0.00020273,2]
[375928394,1753787448251,-963.37,0.00020273,2]
[375928397,1753787448262,-822.16,0.00020273,2]
[375928399,1753787448272,-460.0,0.00020273,2]
[375928401,1753787448282,-460.0,0.00020273,2]
[375928403,1753787448291,-460.0,0.00020273,2]
[375928405,1753787448301,-8553.3,0.00020273,2]
[375928407,1753787448311,-5043.88,0.00020273,2]
[375928409,1753787448320,-460.0,0.00020273,2]
[375928411,1753787448329,-891.66,0.00020273,2]
[375928413,1753787448339,-460.0,0.00020273,2]
[375928415,1753787448348,-460.0,0.00020273,2]
[375928417,1753787448358,-846.98,0.00020273,2]
[375928419,1753787448367,-460.0,0.00020273,2]
[375928421,1753787448377,-460.0,0.00020273,2]
[375928423,1753787448387,-989.35,0.00020273,2]
[375928425,1753787448396,-460.0,0.00020273,2]
[375928427,1753787448406,-254.0317585,0.00020273,2]
[375928477,1753787448887,-460.0,0.00019452,2]
[375928479,1753787448897,-460.0,0.00019726,2]
[375928481,1753787448907,-337.09243243,0.0002,2]
[375928483,1753787448918,-205.9682415,0.00020273,2]
[375928485,1753787448930,-851.98,0.00020273,2]
[375928487,1753787448940,-656.81,0.00020273,2]
[375928489,1753787448950,-460.0,0.00020273,2]
[375928491,1753787448959,-858.02,0.00020273,2]
[375928493,1753787448969,-460.0,0.00020273,2]
[375928495,1753787448978,-460.0,0.00020273,2]
[375928497,1753787448988,-1211.98,0.00020273,2]
[375928499,1753787448997,-2652.76,0.00020273,2]
[375928501,1753787449006,-460.0,0.00020273,2]
[375928502,1753787449016,-460.0,0.00020273,2]
[375928505,1753787449027,-460.0,0.00020273,2]
[375928506,1753787449037,-4341.49,0.00020273,2]
[375928508,1753787449047,-941.96,0.00020273,2]
[375928510,1753787449057,-460.0,0.00020273,2]
[375928512,1753787449067,-460.0,0.00020273,2]
[375928514,1753787449076,-1602.07,0.00020273,2]
[375928516,1753787449086,-460.0,0.00020273,2]
[375928518,1753787449095,-460.0,0.00020273,2]
[375928520,1753787449104,-417.15995741,0.00020273,2]
[375928522,1753787449114,-460.0,0.00020273,2]
[375928524,1753787449124,-1159.05,0.00020273,2]
[375928526,1753787449133,-460.0,0.00020273,2]
[375928528,1753787449143,-3991.99,0.00020273,2]
[375928530,1753787449153,-584.42,0.00020273,2]
[375928532,1753787449162,-1242.75,0.00020273,2]
[375928533,1753787449177,-467.64182818,0.00020273,2]
[375928535,1753787449188,-805.38,0.00020273,2]
[375928537,1753787449197,-570.34,0.00020273,2]
[375928539,1753787449207,-3092.36,0.00020273,2]
[375928541,1753787449217,-1173.41,0.00020273,2]
[375928543,1753787449227,-460.0,0.00020273,2]
[375928545,1753787449236,-1283.38,0.00020273,2]
[375928547,1753787449245,-394.12428215,0.00020273,2]
[375928549,1753787449255,-460.0,0.00020273,2]
[375928551,1753787449265,-3185.9,0.00020273,2]
[375928553,1753787449275,-1107.71,0.00020273,2]
[375928555,1753787449285,-460.0,0.00020273,2]
[375928557,1753787449294,-460.0,0.00020273,2]
[375928559,1753787449304,-1028.98,0.00020273,2]
[375928561,1753787449313,-3420.68,0.00020273,2]
[375928563,1753787449322,-885.34,0.00020273,2]
[375928565,1753787449331,-650.53,0.00020273,2]
[375928567,1753787449342,-460.0,0.00020273,2]
[375928569,1753787449351,-522.64,0.00020273,2]
[375928571,1753787449361,-467.17609631,0.00020273,2]
[375928572,1753787449371,-1209.54,0.00020273,2]
[375928574,1753787449381,-793.46,0.00020273,2]
[375928576,1753787449390,-460.0,0.00020273,2]
[375928578,1753787449400,-460.0,0.00020273,2]
[375928580,1753787449410,-460.0,0.00020273,2]
[375928582,1753787449422,-1341.13,0.00020273,2]
[375928584,1753787449432,-460.0,0.00020273,2]
[375928587,1753787449442,-3298.21,0.00020273,2]
[375928588,1753787449451,-1212.63,0.00020273,2]
[375928590,1753787449461,-2382.37802425,0.00020311,2]
[375928592,1753787449470,-209.07173973,0.00020329,3]
[375928594,1753787449480,-260.0,0.0002033,2]
[375928596,1753787449491,-151.0,0.000204,3]
[375928598,1753787449502,-153.0,0.00020438,2]
[375928600,1753787449511,-578.1881624,0.00020438,2]
[375928602,1753787449521,-578.1881624,0.00020438,2]
[375928604,1753787449538,-578.1881624,0.00020438,2]
[375928606,1753787449556,-578.1881624,0.00020438,2]
[375928608,1753787449566,-1086.922,0.00020447,2]
[375928610,1753787449575,-178.89702467,0.00020447,2]
[375928612,1753787449584,-200.0,0.00020472,15]
[375928614,1753787449594,-200.0,0.00020472,15]
[375928616,1753787449604,-200.0,0.00020472,15]
[375928618,1753787449614,-200.0,0.00020472,15]
[375928620,1753787449623,-320.0,0.00020472,15]
[375928622,1753787449633,-831.38702465,0.00020492,2]
[375928624,1753787449642,-1000.0,0.00020521,2]
[375928626,1753787449652,-1000.0,0.00020521,2]
[375928628,1753787449661,-460.0,0.00020547,2]
[375928630,1753787449671,-151.0,0.00020547,2]
[375928632,1753787449681,-460.0,0.00020547,2]
[375928634,1753787449690,-460.0,0.00020547,2]
[375928636,1753787449699,-161.520422,0.00020547,2]
[375928638,1753787449708,-161.520422,0.00020547,2]
[375928640,1753787449717,-460.0,0.00020547,2]
[375928642,1753787449726,-460.0,0.00020547,2]
[375928644,1753787449735,-460.0,0.00020547,2]
[375928646,1753787449745,-460.0,0.00020547,2]
[375928648,1753787449755,-460.0,0.00020547,2]
[375928650,1753787449764,-469.62,0.00020547,2]
[375928652,1753787449773,-460.0,0.00020547,2]
[375928654,1753787449783,-460.0,0.00020547,2]
[375928656,1753787449792,-1282.06,0.00020547,2]
[375928658,1753787449802,-1087.12,0.00020547,2]
[375928660,1753787449811,-460.0,0.00020547,2]
[375928661,1753787449820,-567.15,0.00020547,2]
[375928663,1753787449829,-460.0,0.00020547,2]
[375928665,1753787449839,-460.0,0.00020547,2]
[375928667,1753787449850,-460.0,0.00020547,2]
[375928669,1753787449860,-631.64,0.00020547,2]
[375928671,1753787449870,-1445.73,0.00020547,2]
[375928673,1753787449879,-661.27,0.00020547,2]
[375928675,1753787449895,-460.0,0.00020547,2]
[375928677,1753787449912,-330.68146207,0.00020547,2]
[375928679,1753787449923,-460.0,0.00020547,2]
[375928681,1753787449932,-511.67,0.00020547,2]
[375928683,1753787449941,-9592.76,0.00020547,2]
[375928685,1753787449950,-2746.86,0.00020547,2]
[375928687,1753787449959,-496.68,0.00020547,2]
[375928689,1753787449968,-460.0,0.00020547,2]
[375928690,1753787449977,-460.0,0.00020547,2]
[375928692,1753787449986,-460.0,0.00020547,2]
[375928694,1753787449996,-460.0,0.00020547,2]
[375928696,1753787450006,-2156.19,0.00020547,2]
[375928698,1753787450015,-460.0,0.00020547,2]
[375928700,1753787450025,-460.0,0.00020547,2]
[375928702,1753787450034,-460.0,0.00020547,2]
[375928704,1753787450043,-485.48,0.00020547,2]
[375928706,1753787450053,-460.0,0.00020547,2]
[375928708,1753787450063,-460.0,0.00020547,2]
[375928710,1753787450073,-527.89782687,0.00020547,2]
[375928712,1753787450083,-1243.28,0.00020547,2]
[375928714,1753787450092,-460.0,0.00020547,2]
[375928716,1753787450101,-460.0,0.00020547,2]
[375928718,1753787450111,-417.32426362,0.00020547,2]
[375928720,1753787450121,-460.0,0.00020547,2]
[375928722,1753787450130,-460.0,0.00020547,2]
[375928724,1753787450143,-643.2,0.00020547,2]
[375928726,1753787450159,-460.0,0.00020547,2]
[375928728,1753787450168,-669.42,0.00020547,2]
[375928730,1753787450177,-460.0,0.00020547,2]
[375928732,1753787450186,-2563.68,0.00020547,2]
[375928734,1753787450196,-460.0,0.00020547,2]
[375928735,1753787450205,-460.0,0.00020547,2]
[375928737,1753787450213,-460.0,0.00020547,2]
[375928739,1753787450222,-460.0,0.00020547,2]
[375928741,1753787450232,-912.41,0.00020547,2]
[375928743,1753787450241,-460.0,0.00020547,2]
[375928745,1753787450250,-460.0,0.00020547,2]
[375928747,1753787450263,-499.15,0.00020547,2]
[375928749,1753787450272,-460.0,0.00020547,2]
[375928751,1753787450282,-545.94,0.00020547,2]
[375928753,1753787450291,-3185.05,0.00020547,2]
[375928755,1753787450301,-963.37,0.00020547,2]
[375928757,1753787450310,-822.16,0.00020547,2]
[375928759,1753787450320,-460.0,0.00020547,2]
[375928761,1753787450330,-460.0,0.00020547,2]
[375928763,1753787450339,-8553.3,0.00020547,2]
[375928765,1753787450348,-460.0,0.00020547,2]
[375928767,1753787450357,-5043.88,0.00020547,2]
[375928769,1753787450366,-460.0,0.00020547,2]
[375928771,1753787450376,-891.66,0.00020547,2]
[375928773,1753787450386,-460.0,0.00020547,2]
[375928775,1753787450395,-460.0,0.00020547,2]
[375928776,1753787450404,-846.98,0.00020547,2]
[375928778,1753787450413,-460.0,0.00020547,2]
[375928780,1753787450424,-460.0,0.00020547,2]
[375928782,1753787450433,-989.35,0.00020547,2]
[375928784,1753787450443,-465.84509291,0.00020547,2]
[375928786,1753787450452,-460.0,0.00020547,2]
[375928788,1753787450461,-851.98,0.00020547,2]
[375928790,1753787450470,-656.81,0.00020547,2]
[375928792,1753787450480,-549.35,0.00020547,2]
[375928794,1753787450489,-858.02,0.00020547,2]
[375928796,1753787450499,-482.29803658,0.00020547,2]
[375928798,1753787450508,-460.0,0.00020547,2]
[375928800,1753787450517,-1211.98,0.00020547,2]
[375928802,1753787450526,-1501.92314386,0.00020547,2]
[375928819,1753787450695,-460.0,0.00019178,2]
[375928821,1753787450704,-1150.83685614,0.00020547,2]
[375928823,1753787450714,-460.0,0.00020547,2]
[375928825,1753787450723,-460.0,0.00020547,2]
[375928827,1753787450732,-460.0,0.00020547,2]
[375928829,1753787450741,-4341.49,0.00020547,2]
[375928831,1753787450751,-537.63293018,0.00020547,2]
[375928833,1753787450762,-404.32706982,0.00020547,2]
[375928835,1753787450771,-460.0,0.00020547,2]
[375928837,1753787450780,-460.0,0.00020547,2]
[375928839,1753787450789,-1602.07,0.00020547,2]
[375928840,1753787450797,-460.0,0.00020547,2]
[375928842,1753787450807,-460.0,0.00020547,2]
[375928844,1753787450816,-460.0,0.00020547,2]
[375928846,1753787450825,-1159.05,0.00020547,2]
[375928848,1753787450835,-563.02,0.00020547,2]
[375928850,1753787450845,-3991.99,0.00020547,2]
[375928852,1753787450858,-1242.75,0.00020547,2]
[375928854,1753787450868,-584.42,0.00020547,2]
[375928856,1753787450877,-805.38,0.00020547,2]
[375928857,1753787450886,-570.34,0.00020547,2]
[375928858,1753787450897,-3092.36,0.00020547,2]
[375928859,1753787450905,-1173.41,0.00020547,2]
[375928860,1753787450915,-460.0,0.00020547,2]
[375928861,1753787450926,-1283.38,0.00020547,2]
[375928862,1753787450935,-460.0,0.00020547,2]
[375928863,1753787450944,-3185.9,0.00020547,2]
[375928864,1753787450953,-1107.71,0.00020547,2]
[375928865,1753787450961,-460.0,0.00020547,2]
[375928866,1753787450971,-460.0,0.00020547,2]
[375928867,1753787450980,-1028.98,0.00020547,2]
[375928868,1753787450988,-3420.68,0.00020547,2]
[375928869,1753787450998,-885.34,0.00020547,2]
[375928870,1753787451007,-650.53,0.00020547,2]
[375928871,1753787451017,-460.0,0.00020547,2]
[375928872,1753787451026,-522.64,0.00020547,2]
[375928873,1753787451035,-1209.54,0.00020547,2]
[375928874,1753787451045,-793.46,0.00020547,2]
[375928875,1753787451054,-460.0,0.00020547,2]
[375928876,1753787451063,-460.0,0.00020547,2]
[375928877,1753787451073,-460.0,0.00020547,2]
[375928879,1753787451082,-460.0,0.00020547,2]
[375928881,1753787451092,-1341.13,0.00020547,2]
[375928883,1753787451101,-3298.21,0.00020547,2]
[375928885,1753787451110,-1212.63,0.00020547,2]
[375928886,1753787451119,-500.0,0.00020548,2]
[375928888,1753787451130,-17892.03774226,0.00020721,3]
[375928890,1753787451140,-12637.12721421,0.00020721,3]
[375928892,1753787451149,-460.5085953,0.00020721,3]
[375928894,1753787451159,-160.0,0.00020721,3]
[375928896,1753787451168,-214.91980558,0.00020721,3]
[375928898,1753787451177,-168.0,0.00020723,2]
[375928900,1753787451187,-486.99160467,0.00020772,2]
[375928902,1753787451196,-519.33640727,0.00020772,2]
[375928904,1753787451206,-504.9755767,0.00020772,2]
[375928906,1753787451215,-828.30554838,0.00020803,2]
[375928908,1753787451224,-154.086202,0.00020816,2]
[375928910,1753787451233,-288.959451,0.00020816,2]
[375928912,1753787451243,-288.959451,0.00020816,2]
[375928914,1753787451253,-204.844558,0.00020816,2]
[375928916,1753787451263,-2000.0,0.00020816,2]
[375928918,1753787451272,-460.0,0.00020821,2]
[375928920,1753787451281,-460.0,0.00020821,2]
[375928922,1753787451290,-460.0,0.00020821,2]
[375928924,1753787451299,-281.18991007,0.00020821,2]
[375928926,1753787451309,-460.0,0.00020821,2]
[375928928,1753787451319,-409.76037142,0.00020821,2]
[375928930,1753787451328,-469.62,0.00020821,2]
[375928932,1753787451337,-460.0,0.00020821,2]
[375928934,1753787451346,-1282.06,0.00020821,2]
[375928936,1753787451355,-1087.12,0.00020821,2]
[375928938,1753787451364,-460.0,0.00020821,2]
[375928940,1753787451373,-567.15,0.00020821,2]
[375928942,1753787451382,-460.0,0.00020821,2]
[375928943,1753787451394,-466.92204182,0.00020821,2]
[375928945,1753787451405,-460.0,0.00020821,2]
[375928947,1753787451414,-631.64,0.00020821,2]
[375928949,1753787451428,-1445.73,0.00020821,2]
[375928951,1753787451437,-661.27,0.00020821,2]
[375928953,1753787451447,-460.0,0.00020821,2]
[375928955,1753787451459,-460.0,0.00020821,2]
[375928957,1753787451468,-511.67,0.00020821,2]
[375928959,1753787451479,-9592.76,0.00020821,2]
[375928961,1753787451489,-2746.86,0.00020821,2]
[375928963,1753787451499,-496.68,0.00020821,2]
[375928965,1753787451509,-460.0,0.00020821,2]
[375928967,1753787451519,-460.0,0.00020821,2]
[375928969,1753787451529,-460.0,0.00020821,2]
[375928971,1753787451540,-345.45235253,0.00020821,2]
[375928973,1753787451550,-460.0,0.00020821,2]
[375928975,1753787451560,-2156.19,0.00020821,2]
[375928977,1753787451569,-460.0,0.00020821,2]
[375928979,1753787451580,-460.0,0.00020821,2]
[375928982,1753787451591,-485.48,0.00020821,2]
[375928983,1753787451602,-460.0,0.00020821,2]
[375928985,1753787451612,-460.0,0.00020821,2]
[375928987,1753787451621,-1243.28,0.00020821,2]
[375928989,1753787451632,-460.0,0.00020821,2]
[375928991,1753787451643,-460.0,0.00020821,2]
[375928993,1753787451653,-460.0,0.00020821,2]
[375928995,1753787451663,-460.0,0.00020821,2]
[375928997,1753787451674,-643.2,0.00020821,2]
[375928999,1753787451683,-460.0,0.00020821,2]
[375929001,1753787451694,-669.42,0.00020821,2]
[375929003,1753787451704,-460.0,0.00020821,2]
[375929005,1753787451715,-2563.68,0.00020821,2]
[375929007,1753787451727,-460.0,0.00020821,2]
[375929009,1753787451736,-460.0,0.00020821,2]
[375929011,1753787451746,-460.0,0.00020821,2]
[375929013,1753787451757,-460.0,0.00020821,2]
[375929015,1753787451767,-912.41,0.00020821,2]
[375929017,1753787451776,-460.0,0.00020821,2]
[375929019,1753787451785,-460.0,0.00020821,2]
[375929021,1753787451796,-499.15,0.00020821,2]
[375929023,1753787451805,-460.0,0.00020821,2]
[375929025,1753787451815,-545.94,0.00020821,2]
[375929027,1753787451825,-3185.05,0.00020821,2]
[375929029,1753787451835,-963.37,0.00020821,2]
[375929031,1753787451846,-822.16,0.00020821,2]
[375929033,1753787451857,-460.0,0.00020821,2]
[375929035,1753787451867,-460.0,0.00020821,2]
[375929037,1753787451877,-8553.3,0.00020821,2]
[375929039,1753787451887,-460.0,0.00020821,2]
[375929041,1753787451897,-5043.88,0.00020821,2]
[375929043,1753787451906,-460.0,0.00020821,2]
[375929044,1753787451916,-891.66,0.00020821,2]
[375929046,1753787451930,-460.0,0.00020821,2]
[375929048,1753787451941,-460.0,0.00020821,2]
[375929050,1753787451951,-846.98,0.00020821,2]
[375929052,1753787451961,-460.0,0.00020821,2]
[375929054,1753787451972,-282.35554875,0.00020821,2]
[375929056,1753787451981,-989.35,0.00020821,2]
[375929059,1753787451991,-460.0,0.00020821,2]
[375929061,1753787452001,-851.98,0.00020821,2]
[375929063,1753787452011,-656.81,0.00020821,2]
[375929065,1753787452021,-858.02,0.00020821,2]
[375929067,1753787452032,-460.0,0.00020821,2]
[375929068,1753787452042,-1211.98,0.00020821,2]
[375929070,1753787452052,-2652.76,0.00020821,2]
[375929072,1753787452062,-401.62842738,0.00020821,2]
[375929074,1753787452071,-460.0,0.00020821,2]
[375929076,1753787452082,-460.0,0.00020821,2]
[375929078,1753787452091,-4341.49,0.00020821,2]
[375929080,1753787452102,-941.96,0.00020821,2]
[375929083,1753787452112,-460.0,0.00020821,2]
[375929085,1753787452123,-460.0,0.00020821,2]
[375929087,1753787452134,-1602.07,0.00020821,2]
[375929102,1753787452277,-460.0,0.00020821,2]
[375929104,1753787452288,-460.0,0.00020821,2]
[375929106,1753787452298,-460.0,0.00020821,2]
[375929108,1753787452308,-1159.05,0.00020821,2]
[375929110,1753787452318,-3991.99,0.00020821,2]
[375929112,1753787452328,-1242.75,0.00020821,2]
[375929114,1753787452338,-584.42,0.00020821,2]
[375929116,1753787452349,-805.38,0.00020821,2]
[375929118,1753787452358,-570.34,0.00020821,2]
[375929120,1753787452369,-3092.36,0.00020821,2]
[375929122,1753787452379,-1173.41,0.00020821,2]
[375929124,1753787452389,-460.0,0.00020821,2]
[375929126,1753787452398,-1283.38,0.00020821,2]
[375929128,1753787452407,-460.0,0.00020821,2]
[375929130,1753787452416,-3185.9,0.00020821,2]
[375929131,1753787452426,-1107.71,0.00020821,2]
[375929133,1753787452436,-460.0,0.00020821,2]
[375929135,1753787452447,-282.34658908,0.00020821,2]
[375929138,1753787452458,-1028.98,0.00020821,2]
[375929140,1753787452469,-3420.68,0.00020821,2]
[375929141,1753787452478,-885.34,0.00020821,2]
[375929143,1753787452489,-650.53,0.00020821,2]
[375929145,1753787452499,-460.0,0.00020821,2]
[375929147,1753787452511,-522.64,0.00020821,2]
[375929149,1753787452521,-1209.54,0.00020821,2]
[375929152,1753787452533,-793.46,0.00020821,2]
[375929154,1753787452543,-460.0,0.00020821,2]
[375929156,1753787452554,-460.0,0.00020821,2]
[375929157,1753787452563,-460.0,0.00020821,2]
[375929159,1753787452576,-460.0,0.00020821,2]
[375929161,1753787452586,-1341.13,0.00020821,2]
[375929163,1753787452596,-3298.21,0.00020821,2]
[375929165,1753787452606,-1212.63,0.00020821,2]
[375929167,1753787452616,-360.0,0.00020878,2]
[375929169,1753787452626,-2382.37802425,0.00020927,2]
[375929171,1753787452636,-500.0,0.00020969,2]
[375929173,1753787452646,-196.076248,0.00020993,2]
[375929175,1753787452656,-168.0,0.00021016,2]
[375929177,1753787452666,-209.07173973,0.00021043,4]
[375929179,1753787452679,-1000.0,0.00021068,2]
[375929181,1753787452690,-1000.0,0.00021068,2]
[375929184,1753787452701,-151.0,0.00021095,2]
[375929186,1753787452711,-288.959451,0.00021095,2]
[375929188,1753787452724,-288.959451,0.00021095,2]
[375929190,1753787452737,-460.0,0.00021095,2]
[375929192,1753787452749,-460.0,0.00021095,2]
[375929194,1753787452758,-161.520422,0.00021095,2]
[375929196,1753787452768,-161.520422,0.00021095,2]
[375929198,1753787452780,-460.0,0.00021095,2]
[375929199,1753787452789,-460.0,0.00021095,2]
[375929201,1753787452802,-469.62,0.00021095,2]
[375929204,1753787452812,-1282.06,0.00021095,2]
[375929205,1753787452823,-1087.12,0.00021095,2]
[375929207,1753787452833,-460.0,0.00021095,2]
[375929209,1753787452843,-567.15,0.00021095,2]
[375929211,1753787452856,-460.0,0.00021095,2]
[375929213,1753787452866,-460.0,0.00021095,2]
[375929215,1753787452876,-631.64,0.00021095,2]
[375929217,1753787452885,-1445.73,0.00021095,2]
[375929219,1753787452897,-661.27,0.00021095,2]
[375929221,1753787452907,-460.0,0.00021095,2]
[375929223,1753787452917,-460.0,0.00021095,2]
[375929225,1753787452930,-511.67,0.00021095,2]
[375929227,1753787452939,-9592.76,0.00021095,2]
[375929229,1753787452949,-2746.86,0.00021095,2]
[375929231,1753787452959,-496.68,0.00021095,2]
[375929233,1753787452969,-432.64427764,0.00021095,2]
[375929235,1753787452981,-460.0,0.00021095,2]
[375929238,1753787452991,-460.0,0.00021095,2]
[375929240,1753787453002,-465.55409708,0.00021095,2]
[375929241,1753787453012,-460.0,0.00021095,2]
[375929243,1753787453023,-2156.19,0.00021095,2]
[375929245,1753787453034,-460.0,0.00021095,2]
[375929247,1753787453043,-485.48,0.00021095,2]
[375929250,1753787453053,-460.0,0.00021095,2]
[375929251,1753787453063,-460.0,0.00021095,2]
[375929254,1753787453073,-1243.28,0.00021095,2]
[375929255,1753787453083,-460.0,0.00021095,2]
[375929258,1753787453092,-460.0,0.00021095,2]
[375929259,1753787453102,-460.0,0.00021095,2]
[375929261,1753787453111,-460.0,0.00021095,2]
[375929263,1753787453121,-643.2,0.00021095,2]
[375929265,1753787453130,-460.0,0.00021095,2]
[375929267,1753787453139,-460.0,0.00021095,2]
[375929269,1753787453148,-669.42,0.00021095,2]
[375929271,1753787453157,-2563.68,0.00021095,2]
[375929273,1753787453166,-460.0,0.00021095,2]
[375929275,1753787453177,-460.0,0.00021095,2]
[375929277,1753787453187,-460.0,0.00021095,2]
[375929279,1753787453196,-912.41,0.00021095,2]
[375929281,1753787453206,-460.0,0.00021095,2]
[375929283,1753787453216,-460.0,0.00021095,2]
[375929285,1753787453226,-460.0,0.00021095,2]
[375929287,1753787453235,-499.15,0.00021095,2]
[375929289,1753787453243,-468.34864337,0.00021095,2]
[375929291,1753787453252,-545.94,0.00021095,2]
[375929293,1753787453262,-3185.05,0.00021095,2]
[375929295,1753787453271,-963.37,0.00021095,2]
[375929297,1753787453280,-822.16,0.00021095,2]
[375929299,1753787453289,-460.0,0.00021095,2]
[375929300,1753787453298,-460.0,0.00021095,2]
[375929302,1753787453307,-8553.3,0.00021095,2]
[375929304,1753787453317,-5043.88,0.00021095,2]
[375929306,1753787453327,-460.0,0.00021095,2]
[375929308,1753787453336,-891.66,0.00021095,2]
[375929310,1753787453346,-460.0,0.00021095,2]
[375929312,1753787453354,-460.0,0.00021095,2]
[375929314,1753787453364,-846.98,0.00021095,2]
[375929316,1753787453374,-186.56207954,0.00021095,2]
[375929318,1753787453383,-989.35,0.00021095,2]
[375929320,1753787453392,-460.0,0.00021095,2]
[375929322,1753787453402,-656.81,0.00021095,2]
[375929324,1753787453411,-197.69434884,0.00021095,2]
[375929348,1753787453685,-266.40755229,0.00019078,2]
[375929350,1753787453696,-578.1881624,0.00020438,2]
[375929352,1753787453705,-654.28565116,0.00021095,2]
[375929354,1753787453715,-858.02,0.00021095,2]
[375929356,1753787453724,-460.0,0.00021095,2]
[375929358,1753787453734,-1211.98,0.00021095,2]
[375929360,1753787453743,-2652.76,0.00021095,2]
[375929362,1753787453752,-460.0,0.00021095,2]
[375929364,1753787453761,-460.0,0.00021095,2]
[375929366,1753787453771,-4250.48049491,0.00021095,2]
[375929750,1753787852994,24900.0,0.0001796,2]
[375929751,1753787928189,198.77113375,0.00018101,2]
[375929752,1753787929859,-174.48881522,0.000183,2]
[375929753,1753787967393,-391.40055185,0.00018355,2]
[375929755,1753788035175,214.1787408,0.00026,120]
[375929756,1753788099330,290.03046465,0.00017984,2]
[375929766,1753788330318,487.72115,0.00013699,2]
[375929774,1753788400822,174.01827879,0.00017984,2]
[375929778,1753788472034,11768.02298388,0.00018,2]
[375929779,1753788483052,242.9424647,0.00018147,2]
[375929780,1753788495540,415.26417538,0.00010618,2]
[375929781,1753788497359,194.67326809,0.000125,2]
[375929782,1753788497382,11191.32178744,0.000125,2]
[375929785,1753788509024,277.92457439,0.00014114,2]
[375929786,1753788510927,282.77508571,0.0001,2]
[375929792,1753788539174,248.663403,0.00018003,2]
[375929801,1753788624750,160.55370922,0.00018,2]
[375929814,1753788632307,-5022.15539363,0.0001854,2]
[375929815,1753788632317,-295.0,0.00018865,2]
[375929817,1753788632327,-426.25093927,0.000189,2]
[375929819,1753788632337,-752.10618499,0.00018942,2]
[375929822,1753788632347,-1116.9567988,0.00019017,2]
[375929823,1753788632357,-1200.0,0.00019038,2]
[375929824,1753788632368,-1200.0,0.00019039,2]
[375929826,1753788632378,-300.0,0.00019039,2]
[375929828,1753788632388,-300.0,0.00019039,2]
[375929830,1753788632398,-500.0,0.0001904,2]
[375929833,1753788632408,-273.01647951,0.0001904,2]
[375929834,1753788632417,-500.0,0.0001904,2]
[375929836,1753788632427,-154.95284083,0.0001904,2]
[375929838,1753788632437,-260.4496282,0.0001904,2]
[375929839,1753788632448,-241.1626047,0.0001904,2]
[375929841,1753788632458,-621.66055518,0.0001904,2]
[375929843,1753788632468,-500.0,0.0001904,2]
[375929855,1753788632479,-500.0,0.0001904,2]
[375929856,1753788632653,-235.92256525,0.0001904,2]
[375929857,1753788632663,-500.0,0.0001904,2]